Cogmind - Beta 14 @@@ ROGUE MODE // 2024.09.20 @ 10:23:42 Player: Dull Result: Destroyed by C-40 Crusher with Compactor Performance ------------- Evolutions (3) 1500 Regions Visited (5) 1000 Robots Destroyed (103) 515 Value Destroyed (3070) 3070 Prototype IDs (16) 320 Alien Tech Used (0) 0 Bonus (22) 22 TOTAL SCORE: 6427 Bonus ------- High Alert Combat Kills 22 Cogmind --------- Core Integrity 0/700 Matter 107/300 Energy 100/100 System Corruption 19% Temperature Cool (0) Movement Core (50) Location -7/Waste Parts ------- > --- POWER (1) -------- (None) > --- PROPULSION (3) --- (None) > --- UTILITY (7) ------ (None) > --- WEAPON (2) ------- (None) > --- INVENTORY (5) ---- Improved Signal Interpreter Tower Shield Heavy Assault Cannon Peak State ------------ > --- POWER ------------ Cooled Ion Engine > --- PROPULSION ------- Armored Treads Heavy Treads > --- UTILITY ---------- Huge Storage Unit Improved Sensor Array Improved Signal Interpreter Improved Terrain Scanner Improved Terrain Scan Processor Improved Utility Shielding System Shield > --- WEAPON ----------- Heavy Missile Launcher Heavy Missile Launcher > --- INVENTORY -------- Heavy Ion Engine Cooled Ion Engine Light Treads Improved Heat Sink Improved Sensor Array Improved Signal Interpreter Weapon Cycler Medium Reactive Plating Medium Reactive Plating Tower Shield Makeshift Hacking Suite System Shield High-powered Tractor Beam Field Recycling Unit Gauss Rifle Assault Cannon Assault Cannon Assault Cannon Heavy Assault Cannon Heavy Missile Launcher Heavy Missile Launcher Makeshift Axe [Rating: 54] Favorites ----------- Power Cooled Ion Engine Engine Cooled Ion Engine Power Core Nuclear Core Propulsion Light Treads Treads Light Treads Leg Aluminum Leg Wheel Wheel Flight Unit Improved VTOL Module Utility Huge Storage Unit Device Improved Sensor Array Storage Huge Storage Unit Processor Targeting Computer Hackware System Shield Protection Core Shielding Weapon Battle Rifle Energy Gun Makeshift Laser Ballistic Gun Battle Rifle Ballistic Cannon Heavy Assault Cannon Launcher Heavy Missile Launcher Slashing Weapon Makeshift Axe Build | -11 -10 -10 -8 -7 -7 ------- Run | Yrd Mat Sub Mat Fac Was Slots Evolved 6 | . . . 4 2 . Power . | . . . . . . Propulsion 1 | . . . 1 . . Utility 5 | . . . 3 2 . Weapon . | . . . . . . Parts Attached 156 | 2 36 35 74 2 7 Power 16 | . 9 . 7 . . Engine 13 | . 9 . 4 . . Core 3 | . . . 3 . . Reactor . | . . . . . . Propulsion 44 | . 12 7 24 . 1 Treads 37 | . 10 7 19 . 1 Leg 3 | . 2 . 1 . . Wheel 3 | . . . 3 . . Hover . | . . . . . . Flight 1 | . . . 1 . . Utility 39 | 1 5 4 26 2 1 Device 9 | 1 . . 6 1 1 Storage 5 | . 2 1 2 . . Processor 5 | . . . 4 1 . Hackware 3 | . . . 3 . . Protection 17 | . 3 3 11 . . Artifact . | . . . . . . Weapon 57 | 1 10 24 17 . 5 Energy Gun 2 | . . 1 1 . . Energy Cannon . | . . . . . . Ballistic Gun 32 | 1 9 12 10 . . Ballistic Cannon 7 | . 1 2 4 . . Launcher 7 | . . . 2 . 5 Special Weapon . | . . . . . . Impact Weapon . | . . . . . . Slashing Weapon 9 | . . 9 . . . Piercing Weapon . | . . . . . . Special Melee Weapon . | . . . . . . Unidentified Prototypes 5 | . 1 . 4 . . Parts Lost 42 | . . 3 30 . 9 Power 4 | . . . 3 . 1 Propulsion 14 | . . 1 11 . 2 Utility 14 | . . 1 10 . 3 Weapon 10 | . . 1 6 . 3 Highest Loss Streak 9 | . . 2 9 . 9 To Critical Strikes 1 | . . . . . 1 Average Slot Usage (%) 93 | . 99 91 94 92 72 Engine 11 | . 13 14 7 7 5 Treads 25 | . 24 27 24 23 12 Device 1 | . 1 . 2 15 12 Storage 8 | . 14 6 9 7 5 Processor 4 | . . . 13 15 12 Hackware 2 | . . . 7 7 5 Protection 11 | . 12 13 8 7 5 Energy Gun 5 | . . 9 1 . . Ballistic Gun 15 | . 27 12 13 . . Ballistic Cannon 1 | . . . 1 7 1 Slashing Weapon 2 | . . 5 . . . Peak Build Rating 54 | 7 14 20 36 42 54 Average Rating 20 | 6 9 18 29 41 41 On Entrance 20 | 6 7 14 20 36 42 Naked Turns 36 | . . . . . 36 Heaviest Build 115 | 13 95 95 115 104 106 Greatest Support 90 | 20 46 46 63 60 90 Greatest Overweight (x) 11 | . 2 4 11 1 1 Average Overweight (x) 1 | . . . 2 1 1 Largest Inventory Capacity 25 | 8 25 25 25 25 25 Average Capacity 18 | 8 18 14 25 25 20 Most Carried 25 | 6 25 25 25 24 25 Average Carried 17 | 5 13 13 23 23 20 Final Capacity 25 | 8 25 25 25 25 5 Final Carried 25 | 5 25 25 25 24 5 Class Distribution -------------------- 74% | Mutant 23% | Scavenger-Mutant Dominant Class ---------------- Mutant | -10/Materials Mutant | -10/Subcaves Scavenger-Mutant | -8/Materials Scavenger-Skirmisher | -7/Factory Skirmisher | -7/Waste Resources | -11 -10 -10 -8 -7 -7 ----------- Run | Yrd Mat Sub Mat Fac Was Matter Collected 3952 | 244 736 759 2020 . 193 Remotely 193 | . . . . . 193 Salvage Created 4629 | 91 730 774 2824 7 203 Parts 229 | 6 54 41 124 2 2 Haulers Intercepted 8 | . 2 . 6 . . Recyclers Shooed 6 | 1 2 . 3 . . Parts Field Recycled . | . . . . . . Retrieved Matter . | . . . . . . Parts Self-Destructed 7 | . . 7 . . . Prevented . | . . . . . . Kills | -11 -10 -10 -8 -7 -7 ------- Run | Yrd Mat Sub Mat Fac Was Combat Hostiles Destroyed 74 | . 12 16 45 . 1 Melee 1 | . . 1 . . . Guns 62 | . 12 13 37 . . Cannons 4 | . . 2 2 . . AOE 6 | . . . 5 . 1 Classes Destroyed 16 | 2 7 1 4 1 1 Worker 4 | . 1 . 3 . . Builder 6 | . 4 . 2 . . Tunneler 3 | 1 2 . . . . Hauler 8 | . 2 . 6 . . Recycler 5 | 1 1 . 3 . . Mechanic 2 | . 1 . 1 . . Operator 1 | . . . . 1 . Watcher 8 | . 3 . 5 . . Swarmer 7 | . 6 . 1 . . Grunt 37 | . 6 2 29 . . Duelist 1 | . . . 1 . . Sentry 9 | . . . 9 . . Hunter 4 | . . . 4 . . Heavy 1 | . . . 1 . . Compactor 1 | . . . . . 1 Subdweller 14 | . . 14 . . . Best Kill Streak 7 | 2 4 2 7 1 1 Combat Bots Only 5 | . 3 2 5 . 1 Max Kills in Single Turn 3 | 1 2 1 3 1 1 Gunslinging 1 | . . . 1 . . Exploded 2 | . . . 2 . 1 Melee 1 | . . 1 . . . Uniques/NPCs Destroyed . | . . . . . . Combat | -11 -10 -10 -8 -7 -7 -------- Run | Yrd Mat Sub Mat Fac Was Hostile Shots Fired 556 | . 56 120 360 . 20 Missed 146 | . 17 33 96 . . Damage Taken 7955 | . 421 1774 4378 . 1382 Core 1367 | . 46 161 450 . 710 Absorbed by Shields . | . . . . . . Redirected to Shielding 229 | . 25 . 90 . 114 Ignored by Resistances 104 | . . . 104 . . Regen/Repaired (Parts) 106 | . 101 . 5 . . Core Remaining (%) 45 | 100 . 17 18 . . Volleys Fired 381 | 4 76 89 199 1 12 Largest 2 | 2 2 2 2 1 2 Hottest 150 | 40 55 150 89 60 78 Shots Fired 736 | 8 152 173 382 1 20 Gun 677 | 8 150 167 352 . . Cannon 30 | . 2 6 21 1 . Launcher 29 | . . . 9 . 20 Special . | . . . . . . Kinetic 570 | 8 152 98 311 1 . Thermal 137 | . . 75 62 . . Explosive 29 | . . . 9 . 20 Electromagnetic . | . . . . . . Robot Hit Streak 30 | 3 10 30 25 . 20 Robot Miss Streak 8 | 1 8 4 4 2 . Penetration Max 1 | . . . 1 . . Secondary Targets 12 | . . 2 10 . . Max Gunslinging Chain 1 | . . 1 1 . . Shots Hit Robots 541 | 6 90 140 285 . 20 Core Hits 210 | 3 39 38 124 1 5 Critical Kills 2 | . 1 . 1 . . Critical Parts Destroyed 7 | . 3 . 4 . . Critical Strikes 30 | . 4 12 14 . . Burn 17 | . . 11 6 . . Destroy 10 | . 4 1 5 . . Blast 3 | . . . 3 . . Melee Attacks 58 | . . 58 . . . Impact . | . . . . . . Slashing 58 | . . 58 . . . Piercing . | . . . . . . Sneak Attacks . | . . . . . . Combat Hostiles . | . . . . . . Follow-up Attacks . | . . . . . . Damage Inflicted 11748 | 79 1223 2324 5776 74 2272 Guns 7742 | 79 1196 1958 4509 . . Cannons 485 | . . 68 417 . . Explosions 3126 | . . . 850 74 2202 Melee 298 | . . 298 . . . Ramming 97 | . 27 . . . 70 Kinetic 6467 | 79 1196 1076 4116 . . Thermal 1760 | . . 950 810 . . Explosive 3126 | . . . 850 74 2202 Electromagnetic . | . . . . . . Impact . | . . . . . . Slashing 298 | . . 298 . . . Piercing . | . . . . . . Highest Corruption 19 | . . . 6 . 19 Average Corruption 5 | . . . 5 . 12 Corruption Purged . | . . . . . . Corruption Blocked . | . . . . . . Effects 129 | . . . 121 . 8 Message Errors 31 | . . . 28 . 3 Matter Fused 27 | . . . 25 . 2 Heat Flow Errors 12 | . . . 12 . . Energy Discharges 18 | . . . 17 . 1 Parts Fused 1 | . . . 1 . . Data Loss (minor) 19 | . . . 17 . 2 Data Loss (major) 7 | . . . 7 . . Misfires 7 | . . . 7 . . Alerts 5 | . . . 5 . . Weapon Failures 2 | . . . 2 . . Overload Shots 1 | . . 1 . . . Effects 1 | . . 1 . . . Heat Surge 1 | . . 1 . . . Overflow Damage 52 | . . . 25 7 20 Projectiles 9 | . . . 9 . . Explosions 43 | . . . 16 7 20 Melee . | . . . . . . Knockbacks 5 | . . . 5 . . Impact . | . . . . . . Kinetic 5 | . . . 5 . . Secondary . | . . . . . . Self-Inflicted Damage 512 | . . . 43 . 469 Shots 12 | . . . 2 . 10 Rammed 32 | . 3 . . . 29 Targets Rammed 32 | . 3 . . . 29 Kicked . | . . . . . . Crushed . | . . . . . . Highest Temperature 362 | . 6 183 362 . . Average Temperature 55 | . 2 27 58 . . Received Heat Transfer 2112 | . 159 324 1629 . . Effects 2 | . . . 2 . . Interference 2 | . . . 2 . . Siege Activations . | . . . . . . Robots Corrupted . | . . . . . . Combat Hostiles . | . . . . . . Parts Fried . | . . . . . . Impact Corruptions . | . . . . . . Robots Melted 1 | . . . 1 . . Combat Hostiles 1 | . . . 1 . . Parts Melted 6 | . . 3 3 . . Heat Transferred 5106 | . . 2886 2220 . . Parts Sabotaged . | . . . . . . Parts Stolen . | . . . . . . Parts Stripped . | . . . . . . Power Chain Reactions . | . . . . . . Alert | -11 -10 -10 -8 -7 -7 ------- Run | Yrd Mat Sub Mat Fac Was Peak Influence 437 | 10 168 . 437 286 130 Initial 193 | . 6 . . 193 100 Average 144 | 7 44 . 194 283 91 Maximum Alert Level 2 | . . . 2 1 . Low Security (%) 62 | 100 100 . 43 2 100 Level 1 26 | . . . 39 97 . Level 2 10 | . . . 16 . . Level 3 . | . . . . . . Level 4 . | . . . . . . Level 5 . | . . . . . . High Security . | . . . . . . Max Security . | . . . . . . Squads Dispatched 13 | . 1 . 12 . . Investigation 7 | . 1 . 6 . . Extermination . | . . . . . . Reinforcement 4 | . . . 4 . . Assault 2 | . . . 2 . . Garrison . | . . . . . . Intercept . | . . . . . . Searches Triggered . | . . . . . . Construction Impeded 1 | . . . 1 . . Haulers Reinforced . | . . . . . . Active Scanning Responses . | . . . . . . Cargo Convoy Interrupts . | . . . . . . Stealth | -11 -10 -10 -8 -7 -7 --------- Run | Yrd Mat Sub Mat Fac Was Distress Signals 1 | . 1 . . . . Communications Jammed . | . . . . . . Distress Signals . | . . . . . . Times Spotted 124 | . 25 18 78 1 2 Peak Tracking Total 8 | . 5 3 8 1 2 Tactical Retreats 5 | . 2 . 3 . . Traps | -11 -10 -10 -8 -7 -7 ------- Run | Yrd Mat Sub Mat Fac Was Traps Triggered 14 | . 9 . 4 1 . Indirectly . | . . . . . . Trap Hack Attempts . | . . . . . . Triggered . | . . . . . . Disarmed . | . . . . . . Reprogrammed . | . . . . . . Reused . | . . . . . . Traps Extracted . | . . . . . . Installed . | . . . . . . Triggered . | . . . . . . Machines | -11 -10 -10 -8 -7 -7 ---------- Run | Yrd Mat Sub Mat Fac Was Machines Disabled 6 | . . 1 2 3 . Max in Single Turn 3 | . . 1 1 3 . Garrison Access 1 | . . . 1 . . Machines Repaired . | . . . . . . Machines Dismantled . | . . . . . . Machines Sabotaged . | . . . . . . Overloaded Fab Kills . | . . . . . . Hacking | -11 -10 -10 -8 -7 -7 --------- Run | Yrd Mat Sub Mat Fac Was Machines Accessed 27 | . 10 2 15 . . Terminals 17 | . 7 . 10 . . Fabricators . | . . . . . . Repair Stations 2 | . 1 . 1 . . Recycling Units 4 | . 2 . 2 . . Scanalyzers 1 | . . . 1 . . Garrison Access 1 | . . . 1 . . Total Hacks 89 | . 22 6 61 . . Successful 49 | . 12 6 31 . . Failed 40 | . 10 . 30 . . Catastrophic 4 | . 1 . 3 . . Database Lockouts . | . . . . . . Manual 53 | . 17 . 36 . . Terminals 57 | . 16 . 41 . . Fabricators . | . . . . . . Repair Stations 4 | . 2 . 2 . . Recycling Units 17 | . 4 . 13 . . Scanalyzers 4 | . . . 4 . . Garrison Access 1 | . . . 1 . . Terminal Hacks 18 | . 3 6 9 . . Record 5 | . . 5 . . . Robot Analysis 6 | . 3 . 3 . . Alert Level 3 | . . . 3 . . Unreport Threat 2 | . . . 2 . . Locate Traps 1 | . . . 1 . . Derelict Proto ID Bank 1 | . . 1 . . . Fabricator Hacks . | . . . . . . Repair Station Hacks 4 | . 2 . 2 . . Scan Component 2 | . 1 . 1 . . Repair 2 | . 1 . 1 . . Recycling Unit Hacks 2 | . . . 2 . . Retrieve Components 2 | . . . 2 . . Scanalyzer 4 | . . . 4 . . Insert Component 2 | . . . 2 . . Analyze 2 | . . . 2 . . Garrison Access Hacks 1 | . . . 1 . . Seal Access 1 | . . . 1 . . Unauthorized Hacks 20 | . 7 . 13 . . Terminals 14 | . 5 . 9 . . Botnet 14 | . 5 . 9 . . Fabricators . | . . . . . . Repair Stations . | . . . . . . Recycling Units 6 | . 2 . 4 . . Reject 2 | . . . 2 . . Mask 4 | . 2 . 2 . . Scanalyzers . | . . . . . . Garrison Access . | . . . . . . Data Cores Recovered . | . . . . . . Used . | . . . . . . Hacking Detections 19 | . 9 . 10 . . Full Trace Events 3 | . . . 3 . . Feedback Events . | . . . . . . Feedback Blocked . | . . . . . . Robot Schematics Acquired . | . . . . . . Robots Built . | . . . . . . Authchips . | . . . . . . Time . | . . . . . . Total Robot Build Rating . | . . . . . . Part Schematics Acquired 2 | . . . 2 . . Parts Built . | . . . . . . Authchips . | . . . . . . Time . | . . . . . . Total Part Build Rating . | . . . . . . Parts Repaired 2 | . 1 . 1 . . Time 64 | . 26 . 38 . . Parts Recycled . | . . . . . . Recycled Matter . | . . . . . . Retrieved Matter . | . . . . . . Retrieved Components 18 | . . . 18 . . Parts Scanalyzed 2 | . . . 2 . . Part Schematics Acquired 2 | . . . 2 . . Parts Damaged . | . . . . . . Bothacking | -11 -10 -10 -8 -7 -7 ------------ Run | Yrd Mat Sub Mat Fac Was Used RIF Installer . | . . . . . . Robots Hacked . | . . . . . . Non-combat . | . . . . . . Combat . | . . . . . . Robot Hacks Applied . | . . . . . . Relay Couplers Released . | . . . . . . Fabnet Peak Effective % . | . . . . . . Robots Rewired . | . . . . . . Allies Hacked . | . . . . . . Hacks Repelled . | . . . . . . Allies | -11 -10 -10 -8 -7 -7 -------- Run | Yrd Mat Sub Mat Fac Was Total Allies . | . . . . . . Largest Group . | . . . . . . Highest-Rated Group . | . . . . . . Highest-Rated Ally . | . . . . . . Total Orders . | . . . . . . Ally Attacks . | . . . . . . Total Damage . | . . . . . . Kills . | . . . . . . Allies Corrupted . | . . . . . . Allies Melted . | . . . . . . Intel | -11 -10 -10 -8 -7 -7 ------- Run | Yrd Mat Sub Mat Fac Was Robot Analysis Total 6 | . 3 . 3 . . Derelict Logs Recovered 1 | . . 1 . . . Drone Launches . | . . . . . . Drone Recoveries . | . . . . . . Exploration | -11 -10 -10 -8 -7 -7 ------------- Run | Yrd Mat Sub Mat Fac Was Turns Passed 15438 | 41 2542 7324 5256 74 201 Spaces Moved 6114 | 22 940 3229 1850 29 44 Core . | . . . . . . Treads 5459 | . 695 3229 1462 29 44 Legs 267 | 22 245 . . . . Wheels 388 | . . . 388 . . Hover . | . . . . . . Flight . | . . . . . . Fastest Speed 120 | 120 120 160 175 243 243 Average Speed 219 | 120 222 209 234 243 244 Slowest Speed 490 | 120 320 480 490 243 245 Overloaded Moves . | . . . . . . Propulsion Burnouts . | . . . . . . Robots Hopped . | . . . . . . Cave-ins Triggered . | . . . . . . Exploration Rate (%) 52 | 3 99 94 99 1 20 Regions Visited 5 Branch Regions 1 Pre-discovered Areas 2 | . . 2 . . . Known Exits Taken 1 | . . . 1 . . Unknown Exits Taken 3 | 1 1 1 . . . Scrap Searched 6 | . . 6 . . . Spaces Dug 13 | . . 13 . . . Terrain Destroyed 190 | . . 13 80 51 46 Melee 13 | . . 13 . . . Projectile 6 | . . . 5 1 . AOE 171 | . . . 75 50 46 Terrain Rammed . | . . . . . . Walls Destroyed . | . . . . . . Machines Disabled . | . . . . . . Actions | -11 -10 -10 -8 -7 -7 --------- Run | Yrd Mat Sub Mat Fac Was Total 7378 | 28 1232 3548 2437 33 100 Wait 411 | . 132 72 207 . . Move 6110 | 21 939 3228 1849 29 44 Hop . | . . . . . . Pick Up 112 | . 27 28 53 1 3 Fast Attach 54 | 1 23 5 23 . 2 Attach 43 | . 2 6 29 2 4 Detach 8 | . 1 2 5 . . Swap 59 | 1 11 24 22 . 1 Drop 88 | 1 18 16 48 . 5 Fire 381 | 4 76 89 199 1 12 Melee 58 | . . 58 . . . Ram 29 | . . . . . 29 Kick . | . . . . . . Crush 3 | . 3 . . . . Escape Stasis . | . . . . . . Rewire . | . . . . . . Trap . | . . . . . . Miscellaneous 22 | . . 20 2 . . Route ------- -11/Scrapyard -10/Materials (discovered 5 exits: [*Mat x3] / [*Min] / *Sub) -10/Subcaves (discovered 2 exits: *Mat x2) -8/Materials (discovered 3 exits: *Fac x3) -7/Factory -7/Waste History --------- Turn | Location | Event 1 | -11/Scrapyard | Discovered new exit (range 3) 42 | -11/Scrapyard | Entered Materials 140 | -10/Materials | Discovered new exit (range 7) 309 | -10/Materials | Build established: Mutant 780 | -10/Materials | Discovered new exit (range 13) 1066 | -10/Materials | Discovered new exit (range 7) 1294 | -10/Materials | Discovered new exit (range 6) 1589 | -10/Materials | Repaired Lgt. Treads 2562 | -10/Materials | Discovered new exit (range 8) 2584 | -10/Materials | Entered Subcaves 2588 | -10/Subcaves | Ambushed by Subdwellers from Twisted Machinery 2609 | -10/Subcaves | Core integrity fell below 50% 3675 | -10/Subcaves | Discovered new exit (range 7) 3694 | -10/Subcaves | Visited Clippyterm 3699 | -10/Subcaves | Learned location of Deep Caves (-6) 3699 | -10/Subcaves | Learned location of Section 7 (-2) 3728 | -10/Subcaves | A swath of the cavern ceiling suddenly collapsed 4210 | -10/Subcaves | Shifting Twisted Machinery released Flamer 4891 | -10/Subcaves | Discovered new exit (range 6) 4964 | -10/Subcaves | Shifting Twisted Machinery released Sub. Monowheel 5327 | -10/Subcaves | Visited 4L-MR0's lab 5839 | -10/Subcaves | Core integrity fell below 20% 6242 | -10/Subcaves | Learned Materials terminal intel 6366 | -10/Subcaves | Shifting Twisted Machinery released Barrage Gun 6372 | -10/Subcaves | Shifting Twisted Machinery released Battle Cannon 6724 | -10/Subcaves | Shifting Twisted Machinery released Sub. Laser 7384 | -10/Subcaves | Found Tower Shield 8225 | -10/Subcaves | Ambushed by Subdweller buried in earth 9908 | -10/Subcaves | Entered Materials 9908 | -8/Materials | Evolved 4 slots: Propulsion x1, Utility x3 9909 | -8/Materials | Loaded intel: 12 terminal locations 10472 | -8/Materials | Discovered new exit (range 3) 10686 | -8/Materials | Lost 9 parts (1p4n1u3w) 11195 | -8/Materials | Discovered new exit (range 3) 11705 | -8/Materials | Build established: Scavenger-Mutant 11867 | -8/Materials | Core integrity fell below 50% 11903 | -8/Materials | Lost 4 parts (1p2n1u) 13150 | -8/Materials | Repaired Imp. Sensor Array 13513 | -8/Materials | Discovered new exit (range 11) 14241 | -8/Materials | Lost 8 parts (1p4n1u2w) 14296 | -8/Materials | Core integrity fell below 20% 15108 | -8/Materials | First assault squad dispatched 15162 | -8/Materials | Identified exit to Factory 15164 | -8/Materials | Entered Factory 15164 | -7/Factory | Evolved 2 slots: Utility x2 15238 | -7/Factory | Sucked down chute 15238 | -7/Factory | Entered Waste 15253 | -7/Waste | EMP discharged 15287 | -7/Waste | Spotted C-40 Crusher 15304 | -7/Waste | Spotted C-40 Crusher 15349 | -7/Waste | Spotted C-40 Crusher 15353 | -7/Waste | EMP discharged 15353 | -7/Waste | System corruption reached 10% 15359 | -7/Waste | Spotted C-40 Crusher 15361 | -7/Waste | Destroyed C-40 Crusher 15382 | -7/Waste | Crushed by Compactor (1 part destroyed) 15385 | -7/Waste | Crushed by Compactor (0 parts destroyed, 1 dropped) 15388 | -7/Waste | Crushed by Compactor (1 part destroyed) 15391 | -7/Waste | Crushed by Compactor (0 parts destroyed, 1 dropped) 15394 | -7/Waste | Crushed by Compactor (1 part destroyed) 15397 | -7/Waste | Crushed by Compactor (1 part destroyed, 1 dropped) 15400 | -7/Waste | Crushed by Compactor (1 part destroyed, 2 dropped) 15403 | -7/Waste | Crushed by Compactor (1 part destroyed, 1 dropped) 15422 | -7/Waste | Core integrity fell below 50% 15433 | -7/Waste | Core integrity fell below 20% 15434 | -7/Waste | Lost 9 parts (1p2n3u3w) 15439 | -7/Waste | Destroyed by C-40 Crusher with Compactor Last Messages --------------- 15400_ Assault Cannon crushed. 15400_ Hvy. Ion Engine crushed. 15400_ Imp. Sensor Array crushed. 15400_ Hpw. Tractor Beam crushed. 15400_ Imp. Terrain Scan Processor crushed. 15400_ System Shield crushed. 15403_ Imp. Terrain Scanner crushed. 15403_ Imp. Signal Interpreter crushed. 15404_ The unstable cave ceiling collapses. 15412_ Slammed into C-40 Crusher. 15415_ Destabilizing: System corrupted (+2). 15416_ Slammed into C-40 Crusher. 15425_ The unstable cave ceiling collapses. 15425_ Slammed into C-40 Crusher. 15427_ System corrupted: Component data lost. 15427_ Slammed into C-40 Crusher. 15430_ The unstable cave ceiling collapses. 15430_ Slammed into C-40 Crusher. 15434_ Destabilizing: System corrupted (+2). 15435_ Slammed into C-40 Crusher. Map ----- +----------------------------------------------------+ | ??????????????????????????????????????????? | | ??????????????????????????????????????????? | | ??????????????????????????????????????????? | | ??????????????????????????????????????????? | | ??????????????????????????????????????????? | | ??????????????????????????????????????????? | | ??????????????????????????????????????????? | | ??????????????????????????????????????????? | | ??????????????????#???????????????????????? | | ??????????????????#???#???????????????????? | | ??????????????#?##???###?#?? ?????????????? | | ?????????????##???##?####????????#????????? | | ??????????#?#?#########?#?#?? ??????????? | | ???????????#######?######### ? #?????????? | | ???????####################? ?#?###?????? | | ???????##?#???#?##?##?#### ? ? ??????? | | ?????#?#######?#####?##### ? ???????? | | ?????#######?####?####?### ? ??????? | | ????#??#####?#?#####?##### ??????? ?? | | ????#?####?#??#####?##### # ###???????? | | ?#??#?#####??#### ## # ###?#??#??? | | ???##??##?#### # ????????? | | ?#?######?#### ## ??###???? | | ???###?####### !/ #### # ######??? | | #####?##??#?## *!!! ? | | #??########### !!@CC ? | | ###??#####?#?# ]![CC ? | | ?#?####?####?# != ? | | ???#?######### ## ####### ?? | | ?#########??## ###?#?????? | | #?###?##?##?## /[ # # ####??????? | | ??#?#######?################ #?#???##??? | | ??#######??##########?#####? ###??#????? | | ??#?#??####?#?##?##?#######?#?###?#???? ??? | | ??##?#????####?#?###########?###?????#????? | | ??????#?##########?###########?##?????????? | | ???????#####?###########?###?#?##??##?????? | | ?????##???####?##########??##???#?????????? | | ???#?????##??#?###??#?##??###?#???#???????? | | ??????#????####?#####?####????????????????? | | ???????#????##?#??##########??????????????? | | ????????##?##??###??#?##??????????????????? | | ?????????#?#???#?#??#??##?????????????????? | | ??????????????????????????????????????????? | | ??????????????????????????????????????????? | | ????????????#?????????????????????????????? | | ??????????????????????????????????????????? | | ??????????????????????????????????????????? | | ??????????????????????????????????????????? | | ??????????????????????????????????????????? | +----------------------------------------------------+ Best States ------------- Heat Dissipation 45 Energy Generation 14 Energy Capacity 480 Matter Stores 300 Matter Capacity 300 Sight Range 16 Robot Scan Range 15 Terrain Scan Range 16 Terrain Scan Density 110 Armor Coverage 800 Resistance: KI 30 Core Shielding 20 Propulsion Shielding 33 Utility Shielding 66 Evasion (%) 55 Targeting Accuracy 13 Recoil Reduction 3 Offensive Hacking 10 Defensive Hacking 10 Item Schematics ----------------- Mak. Hacking Suite | -8/Materials | Scanalyzed System Shield | -8/Materials | Scanalyzed Robot Schematics ------------------ None Fabricated ------------ Nothing Alien Tech Used ----------------- None Achievements -------------- None Challenges ------------ None Game ------ Seed SignalGunProjector Manual? 0 Play Time 01:19:38 Cumulative 127.5 hours Start 2024.09.20 @ 09:05:07 End 2024.09.20 @ 10:23:42 Sessions 1 Manual Loads 0 Difficulty Rogue Special Mode None Game No. 175 Rogue 175 Adventurer 0 Explorer 0 Win Type - Total 1 Types 1/0/0/0/0/0/0/0/0 Lore% 39 Gallery% 59 Achievement% 47 Wizard Run 0 Options --------- Layout 0 ASCII 0 Keyboard 0 Movement Mouse Keybinds 1 Fullscreen 1 Font 18/TerminusBold Map View 76x50 Zoom Use 0% Tactical HUD 1 Map Filters NONE Filters NONE Steam 1 RUN: c4b989cb-dc8f-40a3-8def-7b52c2259e56